bitfinex/quotes_SOLUSD_20240708
["timestamp","ask_amount","ask_price","bid_price","bid_amount"]
[1720455047970,7.00182644,138.81,138.72,6.4767]
[1720455048180,36.69003146,138.85,138.74,100.0]
[1720455048388,18.0068,138.84,138.72,206.4767]
[1720455048690,7.00182644,138.84,138.76,100.0]
[1720455048985,7.54153374,138.88,138.78,100.0]
[1720455049298,7.2023,138.85,138.77,15.435]
[1720455049781,7.2023,138.85,138.78,6.1028]
[1720455050080,7.2015,138.86,138.79,100.0]
[1720455050283,7.2025,138.84,138.78,6.1028]
[1720455050487,20.0,138.83,138.78,6.1028]
[1720455050784,27.2021,138.85,138.78,6.1028]
[1720455050987,20.0,138.85,138.78,6.1028]
[1720455051166,20.0,138.85,138.79,100.0]
[1720455051487,27.202,138.85,138.78,6.1028]
[1720455051680,7.202,138.85,138.78,6.1028]
[1720455051888,20.0,138.84,138.79,100.0]
[1720455052456,20.0,138.85,138.79,100.0]
[1720455052651,7.2032,138.83,138.78,6.1028]
[1720455052873,20.0,138.82,138.78,6.1028]
[1720455053151,7.54153374,138.88,138.81,100.0]
[1720455053454,14.72858591,138.89,138.78,106.1028]
[1720455053455,7.52848591,138.89,138.78,106.1028]
[1720455053684,7.52848591,138.89,138.8,100.0]
[1720455053880,7.2008,138.88,138.8,100.0]
[1720455054082,7.2009,138.87,138.8,100.0]
[1720455054581,20.0,138.86,138.8,100.0]
[1720455055203,7.2022,138.85,138.78,127.8428]
[1720455055484,20.0,138.84,138.8,100.0]
[1720455055691,27.2016,138.86,138.78,106.1028]
[1720455056084,20.0,138.86,138.78,6.1028]
[1720455056260,7.52848591,138.89,138.81,121.74]
[1720455056461,7.2011,138.87,138.8,100.0]
[1720455056976,7.2014,138.87,138.8,100.0]
[1720455057275,7.52848591,138.89,138.78,106.1028]
[1720455057666,7.2018,138.86,138.78,106.1028]
[1720455057867,7.2016,138.86,138.78,106.1028]
[1720455058088,7.52848591,138.89,138.78,106.1028]
[1720455058388,7.202,138.86,138.78,106.1028]
[1720455058596,20.0,138.85,138.78,106.1028]
[1720455059094,20.17,138.88,138.78,106.1028]
[1720455059332,0.17,138.87,138.77,15.435]
[1720455059495,0.17,138.85,138.74,121.9247]
[1720455059792,20.34,138.85,138.74,121.9247]
[1720455059959,20.34,138.85,138.74,21.9247]
[1720455060304,0.17,138.83,138.71,21.9247]
[1720455060503,20.34,138.83,138.71,21.9247]
[1720455060663,20.34,138.83,138.73,100.0]
[1720455060967,20.34,138.83,138.71,143.5847]
[1720455061575,20.34,138.83,138.73,100.0]
[1720455061794,20.34,138.83,138.71,243.5847]
[1720455061998,0.34,138.83,138.71,243.5847]
[1720455062290,0.17,138.82,138.73,100.0]
[1720455062496,0.34,138.84,138.71,121.9247]
[1720455063697,0.34,138.84,138.74,100.0]
[1720455064202,20.0,138.85,138.74,200.0]
[1720455064506,20.0,138.85,138.74,100.0]
[1720455064807,20.0,138.85,138.72,100.0]
[1720455065411,0.34,138.84,138.72,100.0]
[1720455066582,9.00409765,138.84,138.72,100.0]
[1720455066777,0.17,138.82,138.72,100.0]
[1720455066978,0.34,138.82,138.72,100.0]
[1720455067505,0.34,138.82,138.73,100.0]
[1720455067683,0.17,138.82,138.74,100.0]
[1720455067883,8.66409765,138.84,138.74,100.0]
[1720455068081,48.41333051,138.86,138.74,121.66]
[1720455068987,0.17,138.84,138.72,121.66]
[1720455069386,0.34,138.84,138.72,100.0]
[1720455069596,9.00409765,138.84,138.72,100.0]
[1720455069777,0.17,138.82,138.72,100.0]
[1720455069978,0.34,138.82,138.72,100.0]
[1720455070380,0.34,138.82,138.74,100.0]
[1720455070702,27.51501606,138.83,138.74,100.0]
[1720455070886,7.51501606,138.83,138.74,100.0]
[1720455071816,0.34,138.82,138.74,100.0]
[1720455072106,7.51501606,138.83,138.74,100.0]
[1720455072279,7.51501606,138.83,138.74,121.66]
[1720455072481,20.0,138.82,138.73,100.0]
[1720455074493,20.0,138.82,138.73,121.66]
[1720455076010,0.34,138.81,138.73,100.0]
[1720455076708,28.15,138.81,138.73,100.0]
[1720455076912,0.17,138.79,138.71,21.9247]
[1720455077209,0.17,138.79,138.7,100.0]
[1720455077210,0.34,138.79,138.7,100.0]
[1720455077383,27.81,138.78,138.7,100.0]
[1720455077581,20.0,138.77,138.7,100.0]
[1720455077807,20.0,138.77,138.68,144.7482]
[1720455080129,9.5532,138.81,138.74,100.0]
[1720455080296,11.32389765,138.83,138.74,100.0]
[1720455080496,18.83627112,138.83,138.74,100.0]
[1720455080721,7.204,138.82,138.74,100.0]
[1720455080919,18.83627112,138.83,138.74,100.0]
[1720455080920,7.2042,138.81,138.74,100.0]
[1720455081126,7.5122941,138.83,138.79,100.0]
[1720455081302,7.2015,138.86,138.79,100.0]
[1720455081623,7.201,138.87,138.81,100.0]
[1720455081852,7.2018,138.86,138.79,121.66]
[1720455082040,7.2018,138.86,138.79,100.0]
[1720455082200,20.6612,138.88,138.77,100.0]
[1720455082503,7.2025,138.84,138.77,100.0]
[1720455082707,20.0,138.83,138.79,100.0]
[1720455083015,20.0,138.87,138.79,100.0]
[1720455083404,0.17,138.86,138.77,100.0]
[1720455083612,7.2028,138.84,138.77,100.0]
[1720455083822,27.2031,138.83,138.77,100.0]
[1720455084128,7.2031,138.83,138.77,100.0]
[1720455084315,0.17,138.86,138.78,0.89403413]
[1720455084316,20.0,138.82,138.78,0.89403413]
[1720455084717,20.0,138.82,138.77,100.0]
[1720455084906,20.0,138.83,138.79,100.0]
[1720455085226,20.0,138.84,138.79,100.0]
[1720455085823,7.203,138.83,138.77,100.0]
[1720455086032,27.2036,138.82,138.77,100.0]
[1720455086237,27.2041,138.81,138.75,122.4443]
[1720455086443,7.2041,138.81,138.75,122.4443]
[1720455086647,27.2047,138.8,138.75,22.4443]
[1720455086862,20.0,138.8,138.75,22.4443]
[1720455087041,7.2058,138.78,138.72,15.5932]
[1720455087255,20.0,138.77,138.72,15.5932]
[1720455087549,7.2078,138.74,138.68,15.5932]
[1720455087760,20.0,138.73,138.68,15.5932]
[1720455088322,20.0,138.73,138.67,106.1663]
[1720455088541,20.0,138.73,138.64,16.489]
[1720455088542,20.17,138.75,138.65,100.0]
[1720455088751,0.17,138.74,138.65,100.0]
[1720455089048,7.2089,138.72,138.65,100.0]
[1720455089240,20.0,138.71,138.65,100.0]
[1720455089442,27.2097,138.71,138.65,100.0]
[1720455090327,27.2097,138.71,138.63,121.66]
[1720455090532,7.21,138.7,138.63,100.0]
[1720455090753,27.2103,138.69,138.63,100.0]
[1720455091059,20.0,138.69,138.63,100.0]
[1720455091227,20.0,138.71,138.61,106.1663]
[1720455091427,7.2108,138.68,138.61,106.1663]
[1720455091724,27.2116,138.67,138.61,6.1663]
[1720455092118,27.2116,138.67,138.6,16.489]
[1720455092553,27.2116,138.67,138.59,100.0]
[1720455092747,7.2119,138.66,138.59,100.0]
[1720455092919,7.2128,138.65,138.57,106.1663]
[1720455093123,7.2133,138.64,138.55,116.489]
[1720455093327,27.2135,138.63,138.55,116.489]
[1720455093552,7.2135,138.63,138.55,116.489]
[1720455093751,20.0,138.62,138.55,116.489]
[1720455093953,20.0,138.62,138.53,206.1663]
[1720455094133,0.17,138.61,138.53,6.1663]
[1720455094335,0.34,138.61,138.53,6.1663]
[1720455094758,0.34,138.61,138.51,121.66]
[1720455094954,0.34,138.61,138.51,100.0]
[1720455095134,7.2156,138.59,138.51,100.0]
[1720455095335,7.2151,138.6,138.51,100.0]
[1720455095548,32.15481301,138.64,138.55,100.0]
[1720455095753,7.3835,138.63,138.55,100.0]
[1720455095939,7.2142,138.62,138.55,100.0]
[1720455096263,7.215,138.6,138.53,100.0]
[1720455096432,7.2146,138.61,138.53,100.0]
[1720455096830,7.2151,138.6,138.53,100.0]
[1720455097033,7.2157,138.59,138.51,100.0]
[1720455097254,7.215,138.6,138.54,100.0]
[1720455097668,7.215,138.6,138.52,121.66]
[1720455097967,7.2145,138.61,138.54,100.0]
[1720455098138,7.214,138.62,138.54,100.0]
[1720455098338,7.214,138.62,138.54,121.66]
[1720455098640,7.215,138.6,138.52,221.66]
[1720455098843,7.215,138.6,138.52,200.0]
[1720455099162,7.2151,138.6,138.52,100.0]
[1720455099376,18.3741,138.63,138.52,100.0]
[1720455099535,7.2155,138.59,138.52,100.0]
[1720455099867,7.2139,138.63,138.55,21.66]
[1720455100163,7.2139,138.63,138.56,100.0]
[1720455100164,7.2135,138.63,138.56,100.0]
[1720455100456,9.49501301,138.67,138.58,100.0]
[1720455100680,7.2125,138.65,138.58,100.0]
[1720455100876,7.212,138.66,138.58,100.0]
[1720455101175,2.6598,138.68,138.6,100.0]
[1720455101477,7.2119,138.66,138.6,100.0]
[1720455102153,2.6598,138.68,138.58,106.0]
[1720455102358,7.2137,138.63,138.58,6.0]
[1720455102562,20.0,138.62,138.58,6.0]
[1720455102760,27.214,138.62,138.54,206.0]
[1720455103075,27.214,138.62,138.54,106.0]
[1720455103076,20.0,138.62,138.54,106.0]
[1720455103268,7.2151,138.6,138.54,106.0]
[1720455103465,0.17,138.63,138.54,106.0]
[1720455103770,7.2148,138.61,138.54,106.0]
[1720455103969,20.0,138.6,138.54,106.0]
[1720455104579,27.215,138.6,138.54,106.0]
[1720455104785,20.0,138.6,138.54,106.0]
[1720455105068,27.215,138.6,138.54,106.0]
[1720455105275,20.0,138.6,138.54,106.0]
[1720455105469,27.2149,138.61,138.54,106.0]
[1720455105669,20.0,138.61,138.54,106.0]
[1720455105978,27.2145,138.61,138.54,106.0]
[1720455106283,20.0,138.6,138.54,106.0]
[1720455107680,20.0,138.6,138.5,16.489]
[1720455107681,7.2185,138.54,138.5,16.489]
[1720455107862,7.2185,138.54,138.49,6.4204]
[1720455108073,20.0,138.53,138.49,6.4204]
[1720455108264,27.2187,138.53,138.49,6.4204]
[1720455108662,7.2193,138.52,138.47,100.0]
[1720455108871,20.0,138.51,138.47,100.0]
[1720455109394,7.2185,138.54,138.47,100.0]
[1720455109569,27.2187,138.53,138.47,100.0]
[1720455109761,20.0,138.52,138.47,100.0]
[1720455109953,20.17,138.56,138.47,100.0]
[1720455110155,7.2189,138.53,138.47,100.0]
[1720455110362,20.0,138.52,138.49,100.0]
[1720455110657,27.217,138.56,138.49,100.0]
[1720455110857,7.2181,138.54,138.47,100.0]
[1720455111196,7.2181,138.54,138.45,18.0565]
[1720455111197,20.0,138.53,138.45,100.0]
[1720455111686,0.17,138.54,138.45,100.0]
[1720455111861,7.2191,138.52,138.45,100.0]
[1720455112056,20.0,138.51,138.45,100.0]
[1720455112984,27.2197,138.51,138.45,100.0]
[1720455113151,20.0,138.51,138.45,100.0]
[1720455113968,20.0,138.52,138.45,100.0]
[1720455114176,27.2192,138.52,138.45,100.0]
[1720455114674,7.2202,138.5,138.43,121.8364]
[1720455114872,27.2207,138.49,138.43,21.8364]
[1720455115057,0.17,138.51,138.43,21.8364]
[1720455115253,7.2213,138.48,138.43,21.8364]
[1720455115453,20.0,138.47,138.43,21.8364]
[1720455115659,27.2217,138.47,138.43,21.8364]
[1720455115856,7.2224,138.46,138.39,122.3303]
[1720455116057,20.0,138.45,138.39,122.3303]
[1720455116279,27.2219,138.47,138.4,100.0]
[1720455117156,7.2224,138.46,138.39,22.3303]
[1720455117364,20.0,138.45,138.39,22.3303]
[1720455117958,7.2229,138.45,138.39,22.3303]
[1720455118161,20.0,138.44,138.39,22.3303]
[1720455118573,20.0,138.44,138.4,100.0]
[1720455118772,7.3926,138.46,138.4,100.0]
[1720455118773,20.0,138.45,138.4,100.0]
[1720455119169,27.3924,138.46,138.4,100.0]
[1720455119485,20.17,138.46,138.39,22.3303]
[1720455119787,7.2237,138.44,138.39,22.3303]
[1720455119982,20.0,138.43,138.39,22.3303]
[1720455120173,27.2239,138.43,138.39,22.3303]
[1720455120491,20.0,138.43,138.39,22.3303]
[1720455120671,20.0,138.46,138.4,100.0]
[1720455120867,0.17,138.48,138.39,22.3303]
[1720455121075,0.34,138.48,138.39,122.3303]
[1720455121274,7.2221,138.47,138.39,122.3303]
[1720455121477,20.0,138.46,138.41,100.0]
[1720455121679,9.49501301,138.5,138.41,100.0]
[1720455121866,7.2216,138.48,138.41,100.0]
[1720455122282,9.49501301,138.5,138.39,43.9903]
[1720455122283,7.2218,138.47,138.39,122.3303]
[1720455122588,7.2223,138.46,138.39,22.3303]
[1720455122906,7.3929,138.45,138.39,22.3303]
[1720455123074,20.0,138.44,138.39,22.3303]
[1720455123666,20.17,138.45,138.39,22.3303]
[1720455124079,2.6598,138.52,138.43,100.0]
[1720455124273,2.6598,138.52,138.4,0.17]
[1720455124274,18.0515,138.5,138.39,122.3303]
[1720455124586,9.49501301,138.51,138.39,22.3303]
[1720455124793,7.2231,138.45,138.39,22.3303]
[1720455125163,7.2229,138.45,138.39,22.3303]
[1720455125685,20.0,138.44,138.39,22.3303]
[1720455125863,27.2214,138.48,138.39,43.9903]
[1720455126183,20.0,138.48,138.41,100.0]
[1720455126989,20.0,138.48,138.41,121.66]
[1720455127167,16.99148499,138.53,138.45,121.66]
[1720455127376,7.49647198,138.53,138.48,100.0]
[1720455127578,7.86796886,138.55,138.48,107.2211]
[1720455127890,7.86796886,138.55,138.48,100.0]
[1720455128680,7.2186,138.53,138.47,6.0869]
[1720455128988,7.2188,138.53,138.47,6.0869]
[1720455129190,20.0,138.52,138.47,6.0869]
[1720455129411,27.2192,138.52,138.47,6.0869]
[1720455129900,0.17,138.51,138.47,6.0869]
[1720455130105,7.3897,138.51,138.43,22.5049]
[1720455130267,20.0,138.5,138.43,22.5049]
[1720455130677,7.5608,138.49,138.43,22.5049]
[1720455131009,20.0,138.48,138.43,22.5049]
[1720455131493,7.2226,138.46,138.41,6.4922]
[1720455131670,27.3928,138.45,138.37,21.66]
[1720455131995,7.2234,138.44,138.36,106.4922]
[1720455132184,20.0,138.43,138.38,100.0]
[1720455132572,9.49501301,138.48,138.36,106.4922]
[1720455132573,0.17,138.53,138.41,107.2244]
[1720455132865,7.3897,138.51,138.43,100.0]
[1720455133068,16.71421301,138.52,138.44,6.1887]
[1720455133481,7.2197,138.51,138.44,6.1887]
[1720455133690,7.2204,138.5,138.44,6.1887]
[1720455134277,7.3909,138.49,138.44,6.1887]
[1720455134593,20.0,138.48,138.41,100.0]
[1720455134805,7.2227,138.46,138.4,6.1887]
[1720455135101,20.0,138.45,138.4,6.1887]
[1720455135410,20.0,138.45,138.4,106.1887]
[1720455135576,0.17,138.47,138.4,106.1887]
[1720455135777,20.17,138.47,138.4,106.1887]
[1720455136094,20.0,138.47,138.42,100.0]
[1720455136283,27.2207,138.49,138.42,100.0]
[1720455136474,7.3913,138.48,138.4,106.1887]
[1720455136675,20.0,138.47,138.4,6.1887]
[1720455136881,7.2229,138.45,138.4,6.1887]
[1720455137196,20.0,138.44,138.4,6.1887]
[1720455138271,20.34,138.46,138.4,6.1887]
[1720455138480,20.34,138.46,138.38,100.0]
[1720455138481,0.17,138.45,138.37,6.5242]
[1720455138798,7.2228,138.45,138.38,100.0]
[1720455138970,20.0,138.44,138.38,100.0]
[1720455139174,27.3924,138.46,138.38,100.0]
[1720455139408,20.17,138.46,138.38,100.0]
[1720455139575,7.393,138.45,138.37,6.5242]
[1720455139778,20.17,138.44,138.37,6.5242]
[1720455140471,7.2253,138.41,138.36,6.5242]
[1720455140677,20.0,138.4,138.36,6.5242]
[1720455141207,20.0,138.41,138.36,6.5242]
[1720455141374,27.225,138.41,138.36,6.5242]
[1720455141584,20.0,138.41,138.36,6.5242]
[1720455141923,20.0,138.41,138.35,15.4808]
[1720455141924,7.226,138.39,138.35,15.4808]
[1720455142095,20.0,138.38,138.32,6.3497]
[1720455142302,20.0,138.38,138.32,106.3497]
[1720455142773,27.2259,138.39,138.32,106.3497]
[1720455142972,27.2259,138.39,138.32,6.3497]
[1720455143173,7.3966,138.38,138.32,6.3497]
[1720455143376,20.0,138.37,138.32,6.3497]
[1720455143677,20.0,138.37,138.32,106.3497]
[1720455144173,0.17,138.38,138.32,106.3497]
[1720455144687,18.0579,138.45,138.34,100.0]
[1720455144994,7.224,138.43,138.34,221.66]
[1720455145182,7.2244,138.42,138.36,100.0]
[1720455145503,7.2249,138.41,138.34,100.0]
[1720455146285,7.3944,138.42,138.34,100.0]
[1720455146515,7.225,138.41,138.34,100.0]
[1720455146722,7.3947,138.42,138.34,100.0]
[1720455147017,0.17,138.42,138.34,100.0]
[1720455147217,0.17,138.41,138.32,128.0097]
[1720455147400,7.2255,138.4,138.32,128.0097]
[1720455147585,20.0,138.39,138.32,6.3497]
[1720455147784,7.2261,138.39,138.32,106.3497]
[1720455147988,20.0,138.38,138.32,106.3497]
[1720455148496,7.3955,138.4,138.32,106.3497]
[1720455148497,27.2262,138.39,138.32,106.3497]
[1720455148705,20.0,138.39,138.32,106.3497]
[1720455149101,27.2263,138.39,138.32,106.3497]
[1720455149430,0.17,138.38,138.28,6.2502]
[1720455149617,9.83084157,138.38,138.28,6.2502]
[1720455149801,7.2285,138.35,138.28,6.2502]
[1720455150000,27.3989,138.34,138.28,6.2502]
[1720455150199,20.0,138.34,138.28,6.2502]
[1720455150390,20.0,138.34,138.31,100.0]
[1720455150589,7.2273,138.37,138.29,121.66]
[1720455150919,7.2289,138.34,138.28,6.2502]
[1720455151213,27.2292,138.33,138.28,6.2502]
[1720455151415,7.2296,138.32,138.28,6.2502]
[1720455151592,20.0,138.31,138.28,6.2502]
[1720455151791,20.0,138.33,138.28,6.2502]
[1720455151997,27.2291,138.33,138.28,6.2502]
[1720455152599,20.0,138.33,138.28,6.2502]
[1720455152801,27.2291,138.33,138.28,6.2502]
[1720455155205,7.2296,138.32,138.28,6.2502]
[1720455155415,20.0,138.31,138.28,6.2502]
[1720455155912,20.0,138.31,138.28,127.9102]
[1720455156106,23.45337235,138.37,138.3,100.0]
[1720455156320,7.2283,138.35,138.28,106.2502]
[1720455156704,18.0691,138.36,138.28,6.2502]
[1720455156944,7.2291,138.33,138.28,6.2502]
[1720455157128,7.2287,138.34,138.28,6.2502]
[1720455157792,10.2693568,138.36,138.29,121.66]
[1720455158622,10.2693568,138.36,138.31,100.0]
[1720455159004,10.2693568,138.36,138.28,6.2502]
[1720455159317,7.2284,138.35,138.29,100.0]
[1720455159493,10.2693568,138.36,138.29,100.0]
[1720455159698,7.2285,138.35,138.29,100.0]
[1720455159928,17.4972568,138.36,138.29,100.0]
[1720455160134,10.2693568,138.36,138.29,121.66]
[1720455160423,7.50823263,138.39,138.33,100.0]
[1720455160632,7.50823263,138.39,138.35,100.0]
[1720455160844,7.50823263,138.39,138.35,106.6621]
[1720455161214,7.50823263,138.39,138.35,6.6621]
[1720455161419,7.227,138.37,138.34,15.8284]
[1720455161724,7.50823263,138.39,138.34,15.8284]
[1720455161911,7.2271,138.37,138.34,15.8284]
[1720455162117,20.0,138.36,138.34,15.8284]
[1720455162347,27.2275,138.36,138.34,15.8284]
[1720455162648,20.0,138.36,138.34,15.8284]
[1720455162844,20.0,138.36,138.31,23.1727]
[1720455162845,7.2275,138.36,138.31,23.1727]
[1720455163140,7.2285,138.34,138.31,23.1727]
[1720455163319,20.0,138.33,138.31,23.1727]
[1720455163520,20.0,138.33,138.3,100.0]
[1720455164027,20.0,138.36,138.3,100.0]
[1720455164644,27.2275,138.36,138.3,100.0]
[1720455164940,20.0,138.36,138.3,100.0]
[1720455165839,20.0,138.37,138.33,100.0]
[1720455166015,7.50823263,138.39,138.35,100.0]
[1720455166539,14.73423263,138.39,138.34,22.0233]
[1720455166844,7.50823263,138.39,138.34,22.0233]
[1720455167526,7.2271,138.37,138.34,22.0233]
[1720455167852,27.2275,138.36,138.31,100.0]
[1720455168144,20.0,138.36,138.31,100.0]
[1720455169129,20.0,138.37,138.31,100.0]
[1720455169460,7.51253777,138.35,138.31,100.0]
[1720455169746,20.0,138.34,138.31,100.0]
[1720455169946,20.0,138.34,138.3,22.7744]
[1720455170449,20.0,138.34,138.3,6.6069]
[1720455171140,7.2291,138.33,138.3,6.6069]
[1720455171363,20.0,138.32,138.3,6.6069]
[1720455171650,20.0,138.34,138.3,6.6069]
[1720455171832,27.2289,138.34,138.3,6.6069]
[1720455172026,20.0,138.34,138.3,6.6069]
[1720455173459,27.2287,138.34,138.3,6.6069]
[1720455173811,20.0,138.34,138.3,6.6069]
[1720455174719,27.2286,138.34,138.3,6.6069]
[1720455174919,27.229,138.34,138.3,6.6069]
[1720455175213,20.0,138.34,138.3,106.6069]
[1720455175541,7.51253777,138.35,138.3,106.6069]
[1720455176548,7.51253777,138.35,138.32,100.0]
[1720455176722,20.0,138.34,138.32,100.0]
[1720455177532,20.0,138.34,138.3,128.2669]
[1720455177731,20.0,138.34,138.3,106.6069]
[1720455179733,7.51116974,138.33,138.3,106.6069]
[1720455179925,20.0,138.32,138.3,106.6069]
[1720455180126,20.0,138.32,138.3,6.6069]
[1720455181247,20.0,138.32,138.27,15.507]
[1720455181628,7.2301,138.31,138.27,15.507]
[1720455182029,20.0,138.3,138.27,15.507]
[1720455182973,20.0,138.3,138.25,6.0245]
[1720455183961,0.34,138.31,138.25,6.0245]
[1720455184650,7.2308,138.3,138.25,6.0245]
[1720455184850,20.0,138.29,138.25,6.0245]
[1720455186253,27.2308,138.3,138.25,6.0245]
[1720455187350,20.0,138.3,138.25,6.0245]
[1720455187542,7.2301,138.31,138.25,6.0245]
[1720455187740,20.0,138.3,138.25,6.0245]
[1720455188937,7.51116974,138.33,138.26,100.0]
[1720455189132,7.2297,138.32,138.25,6.0245]
[1720455189331,7.2297,138.32,138.26,100.0]
[1720455190238,20.0,138.31,138.26,100.0]
[1720455190536,20.0,138.31,138.25,6.0245]
[1720455190961,20.0,138.31,138.26,100.0]
[1720455191256,7.51095244,138.31,138.28,100.0]
[1720455191754,7.51095244,138.31,138.26,121.66]
[1720455192453,20.0,138.3,138.26,121.66]
[1720455192757,20.0,138.3,138.26,100.0]
[1720455193051,20.0,138.3,138.25,6.0245]
[1720455193263,20.0,138.3,138.26,100.0]
[1720455193555,20.0,138.3,138.25,6.0245]
[1720455193967,27.231,138.3,138.25,6.0245]
[1720455194132,7.2313,138.29,138.25,6.0245]
[1720455194335,20.0,138.28,138.25,6.0245]
[1720455195035,20.0,138.3,138.25,106.0245]
[1720455196042,20.0,138.3,138.25,6.0245]
[1720455196242,20.0,138.3,138.24,16.0211]
[1720455196466,7.2312,138.29,138.24,16.0211]
[1720455196647,20.0,138.28,138.24,16.0211]
[1720455197376,20.0,138.29,138.24,16.0211]
[1720455197834,20.0,138.29,138.23,100.0]
[1720455198034,7.2321,138.28,138.22,6.632]
[1720455198260,27.2323,138.27,138.22,6.632]
[1720455198975,35.2535,138.25,138.2,16.6645]
[1720455199500,20.0,138.24,138.16,100.0]
[1720455199774,28.02,138.22,138.17,8.69651482]
[1720455200080,7.2355,138.21,138.14,100.0]
[1720455200256,20.0,138.2,138.16,121.66]
[1720455200657,20.0,138.2,138.16,100.0]
[1720455200863,20.0,138.21,138.16,100.0]
[1720455201159,20.0,138.21,138.14,121.66]
[1720455201356,27.2354,138.21,138.14,121.66]
[1720455202075,20.0,138.21,138.14,100.0]
[1720455202274,20.17,138.22,138.14,100.0]
[1720455202471,28.89091236,138.22,138.14,100.0]
[1720455202675,7.231,138.3,138.21,121.66]
[1720455202874,12.213,138.31,138.23,100.0]
[1720455202875,16.7837,138.31,138.23,100.0]
[1720455203253,16.7837,138.31,138.21,100.0]
[1720455203254,7.49545283,138.3,138.21,100.0]
[1720455203475,7.49545283,138.3,138.2,21.7744]
[1720455203678,7.2329,138.26,138.2,21.7744]
[1720455204088,7.2341,138.24,138.16,121.7744]
[1720455204377,20.0,138.23,138.16,121.7744]
[1720455204675,27.2343,138.23,138.16,121.7744]
[1720455205090,20.0,138.23,138.16,143.4344]
[1720455205393,0.17,138.24,138.18,100.0]
[1720455205697,20.0,138.25,138.18,121.66]
[1720455205889,20.0,138.25,138.2,100.0]
[1720455206192,20.0,138.25,138.21,21.66]
[1720455206383,20.0,138.29,138.21,21.66]
[1720455206598,20.0,138.29,138.22,100.0]
[1720455206968,27.2313,138.29,138.22,100.0]
[1720455207289,7.2317,138.28,138.2,100.0]
[1720455207494,20.0,138.27,138.2,100.0]
[1720455207790,27.2313,138.29,138.2,100.0]
[1720455207990,7.4017,138.28,138.2,100.0]
[1720455208286,20.0,138.27,138.2,100.0]
[1720455208785,27.2322,138.27,138.18,100.0]
[1720455208991,27.2322,138.27,138.18,121.66]
[1720455209289,27.2322,138.27,138.2,100.0]
[1720455209290,20.0,138.27,138.2,100.0]
[1720455209466,20.17,138.28,138.2,100.0]
[1720455209789,20.0,138.28,138.22,100.0]
[1720455209983,20.0,138.29,138.22,100.0]
[1720455210472,0.17,138.28,138.22,100.0]
[1720455210683,7.49545283,138.3,138.24,118.0841]
[1720455210875,7.49545283,138.3,138.24,139.7441]
[1720455211062,16.7813,138.35,138.26,100.0]
[1720455211386,7.5054278,138.33,138.26,100.0]